bitfinex/quotes_ETHUSD_20251117
["timestamp","ask_amount","ask_price","bid_price","bid_amount"]
[1763365793292,0.005,3211.9,3210.8,5.64636393]
[1763365794916,0.2044,3211.9,3210.8,5.64636393]
[1763365795708,0.005,3211.9,3210.8,6.78010473]
[1763365795912,0.005,3211.9,3211.2,4.23696721]
[1763365796102,0.005,3211.9,3211.8,0.6186]
[1763365796299,0.005,3211.9,3211.8,1.2175308]
[1763365796498,0.005,3211.9,3211.8,1.6763308]
[1763365797135,0.005,3211.9,3211.8,1.66154326]
[1763365797310,0.005,3212.9,3212.0,4.23696721]
[1763365797852,0.005,3212.9,3212.1,0.4588]
[1763365798006,0.005,3212.9,3212.2,0.46957672]
[1763365798221,0.005,3212.9,3212.1,0.22066022]
[1763365798623,0.2044,3212.9,3211.8,0.7385308]
[1763365799078,0.688,3212.9,3211.8,0.1396]
[1763365799570,0.005,3212.9,3211.8,0.1396]
[1763365799773,0.007,3212.9,3211.8,0.1396]
[1763365800376,0.007,3212.9,3212.8,0.2385]
[1763365801254,0.007,3212.9,3212.5,1.1337408]
[1763365801461,1.1411,3212.9,3212.0,1.1337408]
[1763365801856,0.007,3212.9,3212.1,0.2385]
[1763365802371,0.2064,3212.9,3212.1,0.2385]
[1763365802787,0.4836,3212.8,3211.8,0.1396]
[1763365802981,0.4836,3212.8,3211.0,0.1248]
[1763365802982,0.4511,3212.2,3211.3,0.2385]
[1763365803640,0.4836,3212.6,3211.3,4.47546721]
[1763365803974,0.4836,3212.6,3211.4,0.44754672]
[1763365804176,0.4836,3212.6,3211.3,0.2385]
[1763365804976,0.4836,3212.6,3211.0,0.1248]
[1763365805264,0.405504,3212.5,3211.0,0.1248]
[1763365805631,0.405504,3212.3,3211.0,0.1248]
[1763365806151,0.4511,3211.1,3210.2,0.2385]
[1763365808051,0.4511,3211.1,3210.0,1.1337408]
[1763365808052,0.9347,3211.1,3210.0,1.1337408]
[1763365808661,0.9347,3211.1,3209.9,4.23696721]
[1763365808662,0.4836,3211.0,3210.1,0.6064808]
[1763365809363,0.4836,3211.0,3210.1,0.5483808]
[1763365809563,0.4836,3211.0,3210.1,0.005]
[1763365809769,4.23696721,3211.9,3210.1,0.005]
[1763365809770,0.4836,3211.5,3210.3,4.23696721]
[1763365809947,0.4836,3211.4,3210.3,4.23696721]
[1763365810558,0.4836,3211.4,3210.1,0.005]
[1763365810735,0.4836,3211.4,3210.1,0.2435]
[1763365810936,0.4836,3211.7,3210.7,4.23696721]
[1763365811144,0.4836,3212.2,3211.2,4.23696721]
[1763365811342,0.4836,3212.2,3211.6,0.2385]
[1763365811872,0.2064,3212.9,3211.6,0.2385]
[1763365811873,0.4836,3212.6,3211.6,0.2385]
[1763365815043,0.007,3212.9,3212.5,0.2385]
[1763365815243,0.007,3212.9,3212.6,0.44754672]
[1763365815447,0.007,3212.9,3212.8,0.2385]
[1763365815757,0.007,3212.9,3212.2,0.2385]
[1763365815936,0.2064,3212.9,3212.1,4.23696721]
[1763365816140,0.007,3212.9,3212.8,0.2385]
[1763365818537,0.007,3212.9,3212.4,0.2385]
[1763365818745,0.007,3212.9,3211.3,0.0844]
[1763365818746,0.4506,3212.8,3211.3,0.0844]
[1763365818942,0.4506,3212.8,3211.7,1.1337408]
[1763365819151,0.4506,3212.8,3211.8,0.5609208]
[1763365819342,0.007,3212.9,3212.7,0.2385]
[1763365819543,0.007,3212.9,3212.8,0.2385]
[1763365820279,0.007,3212.9,3212.4,4.23696721]
[1763365820856,0.007,3212.9,3212.1,1.3722408]
[1763365821072,0.007,3212.9,3212.2,0.5609208]
[1763365821782,0.007,3212.9,3212.2,0.7994208]
[1763365823588,0.1956,3212.9,3212.2,0.5609208]
[1763365823960,0.6616,3212.9,3211.9,0.2385]
[1763365824359,0.466,3212.8,3211.9,0.2385]
[1763365824588,0.007,3212.9,3212.1,1.1337408]
[1763365824903,0.466,3212.8,3211.9,0.2385]
[1763365825109,0.007,3212.9,3212.2,4.23696721]
[1763365825306,0.007,3212.9,3212.3,0.42369672]
[1763365826306,0.007,3212.9,3212.8,0.2385]
[1763365827501,0.007,3212.9,3212.8,0.477]
[1763365827870,0.007,3212.9,3212.8,0.2385]
[1763365828198,0.007,3212.9,3212.3,0.42369672]
[1763365828410,0.1956,3212.9,3211.8,4.23696721]
[1763365828578,0.6616,3212.9,3211.6,1.1337408]
[1763365828772,0.1956,3212.9,3212.0,1.1337408]
[1763365828986,0.466,3212.8,3212.0,1.1337408]
[1763365829220,0.466,3212.8,3211.5,4.23696721]
[1763365829513,0.466,3212.8,3211.6,1.1337408]
[1763365830315,0.1956,3212.9,3211.9,4.23696721]
[1763365830494,0.466,3212.8,3211.9,4.23696721]
[1763365831526,0.1956,3212.9,3211.9,4.23696721]
[1763365831817,0.1956,3212.9,3211.9,4.47546721]
[1763365832785,0.1956,3212.9,3212.0,0.2385]
[1763365833102,0.007,3212.9,3212.3,4.23696721]
[1763365833300,0.007,3212.9,3212.4,1.1337408]
[1763365833502,0.007,3212.9,3212.8,0.2385]
[1763365834580,0.6602,3212.9,3212.1,0.44754672]
[1763365834808,0.1956,3212.9,3212.1,0.68604672]
[1763365835016,0.6616,3212.9,3211.6,0.5609208]
[1763365835221,0.6616,3212.9,3211.2,0.2385]
[1763365835222,0.6616,3212.9,3211.5,0.2385]
[1763365835429,0.466,3212.8,3211.7,1.1337408]
[1763365835584,0.1956,3212.9,3211.7,1.1337408]
[1763365835795,0.466,3212.8,3211.6,4.23696721]
[1763365836002,0.466,3212.8,3211.2,4.47546721]
[1763365836326,0.405504,3212.7,3211.4,0.45598672]
[1763365836545,0.405504,3212.7,3211.1,0.0844]
[1763365836836,0.466,3212.6,3211.1,0.0844]
[1763365838457,0.466,3212.6,3211.5,0.001]
[1763365839227,0.6532,3211.6,3211.5,0.001]
[1763365839725,1.1192,3211.6,3211.5,0.001]
[1763365841473,1.524704,3211.6,3211.5,0.001]
[1763365841676,2.19554939,3211.6,3211.5,0.001]
[1763365841833,2.19554939,3211.6,3211.2,0.001]
[1763365842170,0.870104,3211.3,3211.2,0.001]
[1763365842522,1.336104,3211.3,3211.2,0.001]
[1763365844229,1.336104,3211.3,3211.0,0.001]
[1763365844426,0.870104,3211.1,3211.0,0.001]
[1763365844825,1.336104,3211.1,3210.1,0.005]
[1763365845042,0.6035,3210.2,3210.1,0.005]
[1763365845447,1.0695,3210.2,3210.1,0.005]
[1763365846028,0.1886,3211.6,3210.1,0.005]
[1763365846029,0.1886,3210.7,3210.1,0.2435]
[1763365846225,0.466,3211.0,3210.1,4.29163431]
[1763365846429,0.466,3211.3,3210.4,4.04813431]
[1763365846654,0.466,3211.3,3210.4,4.45294774]
[1763365847323,0.466,3211.3,3210.1,4.05313431]
[1763365847573,0.466,3211.3,3210.4,4.04813431]
[1763365847929,0.466,3211.3,3210.7,4.04813431]
[1763365848568,0.6546,3211.6,3210.7,4.04813431]
[1763365849071,0.466,3211.5,3210.4,4.04813431]
[1763365849273,0.466,3211.5,3210.5,0.40481343]
[1763365854776,0.466,3211.5,3210.4,4.28663431]
[1763365856581,0.466,3211.5,3210.5,0.001]
[1763365857090,0.468,3211.5,3210.5,0.001]
[1763365860262,0.468,3211.5,3210.7,4.04813431]
[1763365860489,0.002,3211.5,3210.7,4.04813431]
[1763365860688,0.002,3211.5,3211.0,4.04813431]
[1763365860897,0.002,3211.5,3211.1,0.0844]
[1763365861564,0.002,3211.5,3211.4,4.28663431]
[1763365864133,0.002,3211.5,3211.4,4.52513431]
[1763365866322,0.002,3211.5,3211.4,0.2385]
[1763365867508,0.002,3211.5,3211.2,1.1337408]
[1763365867909,0.002,3211.5,3211.1,4.13253431]
[1763365868184,0.002,3211.5,3211.4,0.2385]
[1763365868494,0.002,3211.5,3211.1,4.13253431]
[1763365869787,0.4865,3211.2,3210.8,4.04813431]
[1763365870418,0.4542,3211.4,3210.8,4.04813431]
[1763365870819,0.002,3211.5,3210.8,4.04813431]
[1763365871035,0.4562,3211.5,3210.8,4.04813431]
[1763365872583,0.002,3211.5,3210.8,4.04813431]
[1763365872789,0.002,3211.5,3211.4,0.2385]
[1763365873016,0.002,3211.5,3211.4,4.28663431]
[1763365873321,0.002,3211.5,3211.4,4.52513431]
[1763365875436,0.002,3211.5,3211.4,4.28663431]
[1763365875953,0.002,3211.5,3211.4,4.52513431]
[1763365876142,0.002,3211.5,3211.4,4.97764774]
[1763365876816,0.002,3211.5,3211.4,4.73914774]
[1763365877017,0.002,3211.5,3211.4,0.69101343]
[1763365877251,0.4741,3211.5,3211.0,0.001]
[1763365877624,0.002,3211.5,3211.0,0.001]
[1763365877824,0.002,3211.5,3211.1,4.04813431]
[1763365878323,0.4878,3211.5,3211.1,4.04813431]
[1763365878828,0.002,3211.5,3211.1,4.04813431]
[1763365879153,0.002,3211.5,3211.1,4.45304774]
[1763365879860,0.4878,3211.5,3211.1,4.45304774]
[1763365880057,0.4878,3211.5,3211.1,4.04813431]
[1763365880860,0.4721,3211.2,3211.1,4.04813431]
[1763365882829,0.9498,3211.2,3211.0,0.001]
[1763365883047,0.4674,3211.1,3211.0,0.001]
[1763365884843,0.002,3211.5,3211.0,0.001]
[1763365885048,0.002,3211.5,3211.0,4.04913431]
[1763365886734,0.002,3211.5,3211.0,4.47789774]
[1763365887470,0.002,3211.5,3211.0,4.04913431]
[1763365891073,0.002,3211.5,3211.0,4.28763431]
[1763365891473,0.002,3211.5,3211.0,4.04913431]
[1763365891777,0.4844,3211.5,3211.0,4.04913431]
[1763365891979,0.4674,3211.1,3211.0,17.87590587]
[1763365892586,0.002,3211.5,3211.0,18.11440587]
[1763365892789,0.4844,3211.5,3211.0,18.11440587]
[1763365893091,0.4844,3211.5,3211.0,17.87590587]
[1763365893291,0.4674,3211.1,3211.0,17.87590587]
[1763365893789,0.002,3211.5,3211.0,18.11440587]
[1763365893990,0.002,3211.2,3211.0,18.11440587]
[1763365894384,0.002,3211.2,3211.1,0.2385]
[1763365894596,0.4674,3211.1,3211.0,17.87590587]
[1763365894892,0.002,3211.2,3211.0,17.87590587]
[1763365895258,0.002,3211.2,3211.1,0.2385]
[1763365897293,0.002,3211.2,3211.1,0.79380588]
[1763365897495,0.002,3211.2,3211.1,4.84194019]
[1763365897877,0.002,3211.2,3211.1,5.97568099]
[1763365898104,0.002,3211.2,3211.1,1.68904668]
[1763365900694,0.002,3211.2,3211.1,0.2385]
[1763365901503,0.002,3211.2,3211.0,17.87590587]
[1763365903685,0.4674,3211.1,3211.0,17.87590587]
[1763365904373,0.002,3211.2,3211.0,17.87590587]
[1763365904795,0.002,3211.2,3211.1,0.2385]
[1763365905282,0.002,3211.2,3211.0,17.87590587]
[1763365905500,0.4674,3211.1,3211.0,17.87590587]
[1763365905712,0.002,3211.2,3211.0,17.87590587]
[1763365906007,0.4674,3211.1,3211.0,17.87590587]
[1763365906421,0.002,3211.2,3211.0,17.87590587]
[1763365906913,0.4674,3211.1,3211.0,17.87590587]
[1763365907340,0.9498,3211.1,3211.0,17.87590587]
[1763365908057,0.9498,3211.1,3211.0,16.86340338]
[1763365908213,0.9498,3211.1,3211.0,16.46814392]
[1763365909463,0.4674,3211.1,3211.0,16.46814392]
[1763365909637,0.002,3211.2,3211.0,16.46814392]
[1763365909939,0.4674,3211.1,3211.0,16.46814392]
[1763365910347,0.9498,3211.1,3211.0,16.46814392]
[1763365912339,1.355304,3211.1,3211.0,16.46914392]
[1763365912816,0.9498,3211.1,3211.0,16.46914392]
[1763365913635,0.9618,3211.1,3211.0,16.46914392]
[1763365920175,1.367304,3211.1,3211.0,16.46914392]
[1763365920334,2.03945172,3211.1,3211.0,16.46914392]
[1763365920731,2.87843167,3211.1,3211.0,16.46914392]
[1763365920957,2.8793897,3211.1,3211.0,16.46914392]
[1763365921343,4.0131305,3211.1,3211.0,16.46914392]
[1763365921549,4.01271051,3211.1,3211.0,16.46914392]
[1763365921965,3.17308289,3211.1,3211.0,15.76704392]
[1763365922230,3.17308289,3211.1,3211.0,15.28454946]
[1763365922231,9.27698671,3211.1,3211.0,15.28454946]
[1763365922458,10.39579666,3211.1,3211.0,15.28454946]
[1763365922674,8.52179666,3211.1,3211.0,15.28454946]
[1763365922853,4.29189284,3211.1,3211.0,15.28454946]
[1763365923227,1.63383809,3211.1,3211.0,15.28454946]
[1763365923453,0.4674,3211.1,3211.0,15.28454946]
[1763365923656,0.002,3211.2,3211.0,16.81300441]
[1763365924449,0.002,3211.2,3211.1,0.3229]
[1763365925346,0.4599,3211.2,3211.0,15.28454946]
[1763365925551,0.002,3211.2,3211.0,15.28454946]
[1763365925875,0.002,3211.2,3211.1,0.2385]
[1763365926171,0.002,3211.2,3211.0,15.28454946]
[1763365926466,0.002,3211.2,3211.1,1.79080495]
[1763365928333,0.002,3211.2,3211.1,2.02930495]
[1763365931563,0.002,3211.2,3211.1,1.79080495]
[1763365932838,0.002,3211.2,3211.1,1.55230495]
[1763365933051,0.002,3211.2,3211.1,1.79080495]
[1763365933638,0.002,3211.2,3211.1,1.55230495]
[1763365933846,0.9543,3211.2,3211.0,15.28454946]
[1763365934048,0.4579,3211.1,3211.0,15.28454946]
[1763365934670,0.9523,3211.1,3211.0,15.28454946]
[1763365936538,1.357804,3211.1,3211.0,15.28454946]
[1763365936761,2.02932717,3211.1,3211.0,15.28454946]
[1763365941796,3.65199531,3211.1,3211.0,15.28454946]
[1763365942174,3.16306797,3211.1,3211.0,15.28454946]
[1763365944106,3.16306797,3211.1,3211.0,14.81497274]
[1763365945042,3.65211873,3211.1,3211.0,14.81497274]
[1763365945403,4.76936245,3211.1,3211.0,14.81497274]
[1763365948002,3.65211873,3211.1,3211.0,14.81497274]
[1763365948202,4.48945426,3211.1,3211.0,14.81497274]
[1763365949038,3.24661473,3211.1,3211.0,14.81497274]
[1763365949202,3.24861473,3211.1,3211.0,14.81497274]
[1763365949399,7.88402255,3211.1,3211.0,14.81497274]
[1763365949801,9.00126627,3211.1,3211.0,14.81497274]
[1763365950615,7.88402255,3211.1,3211.0,14.81497274]
[1763365952237,3.65411873,3211.1,3211.0,14.81497274]
[1763365952533,8.72093048,3211.1,3211.0,14.81497274]
[1763365952834,8.99991547,3211.1,3211.0,14.81497274]
[1763365953199,10.87391547,3211.1,3211.0,14.81497274]
[1763365953395,9.75802255,3211.1,3211.0,14.81497274]
[1763365955338,13.20498862,3211.1,3211.0,10.96265947]
[1763365955630,13.20498862,3211.1,3211.0,9.27567255]
[1763365955829,12.71593786,3211.1,3211.0,6.1950551]
[1763365956036,12.71593786,3211.1,3211.0,5.48428959]
[1763365956432,12.71593786,3211.1,3211.0,2.1396163]
[1763365956638,14.94612198,3211.1,3211.0,1.06647068]
[1763365956819,12.71593786,3211.1,3211.0,1.06647068]
[1763365957023,14.94630951,3211.1,3211.0,1.06647068]
[1763365957531,10.93014862,3210.7,3210.6,0.001]
[1763365957732,13.86885464,3210.7,3210.6,0.001]
[1763365957932,14.36455464,3210.7,3210.6,0.001]
[1763365958827,14.48951539,3210.7,3210.6,0.001]
[1763365959025,13.30641505,3210.7,3210.6,0.001]
[1763365959813,9.8944543,3210.7,3210.6,0.001]
[1763365960034,3.08741891,3210.7,3210.6,0.001]
[1763365960228,3.0037404,3210.7,3210.6,0.001]
[1763365960559,1.26642317,3210.7,3210.6,0.001]
[1763365960854,1.496104,3210.7,3210.6,0.001]
[1763365961039,8.27153099,3210.7,3210.6,0.001]
[1763365961216,9.40527179,3210.7,3210.6,0.001]
[1763365961416,7.53127179,3210.7,3210.6,0.001]
[1763365961643,9.62136797,3210.7,3210.6,0.001]
[1763365962018,10.05285495,3210.7,3210.6,0.001]
[1763365962643,10.45835895,3210.7,3210.6,0.001]
[1763365963566,10.11047145,3210.7,3210.6,0.001]
[1763365964037,9.61477145,3210.7,3210.6,0.001]
[1763365964240,9.90793938,3210.7,3210.6,0.001]
[1763365964855,9.97097145,3210.7,3210.6,0.001]
[1763365965365,11.08588945,3210.7,3210.6,0.001]
[1763365966157,9.97097145,3210.7,3210.6,0.001]
[1763365966824,14.02079892,3210.7,3210.6,0.001]
[1763365967221,14.02079892,3210.7,3210.3,0.001]
[1763365967222,4.8262448,3210.6,3210.3,0.001]
[1763365967439,10.75007227,3210.4,3210.3,0.001]
[1763365967636,11.87699544,3210.4,3210.3,0.001]
[1763365967835,12.37269544,3210.4,3210.3,0.001]
[1763365968067,3.16186797,3210.4,3210.3,0.001]
[1763365968371,7.21169544,3210.4,3210.3,0.001]
[1763365969386,8.8909067,3210.4,3210.3,0.001]
[1763365969672,4.43557523,3210.4,3210.3,0.001]
[1763365970039,3.16186797,3210.4,3210.3,0.001]
[1763365971372,0.405504,3210.1,3209.9,0.001]
[1763365971575,8.21987601,3210.0,3209.9,0.001]
[1763365971780,8.89139918,3210.0,3209.9,0.001]
[1763365971979,7.21139544,3210.0,3209.9,0.001]
[1763365972676,13.53139544,3210.0,3209.9,0.001]
[1763365973657,7.21139544,3210.0,3209.9,0.001]
[1763365973864,7.70061983,3210.0,3209.9,0.001]
[1763365974140,7.21139544,3210.0,3209.9,0.001]
[1763365975047,0.4659,3209.5,3209.1,0.005]
[1763365975259,0.4659,3209.5,3206.3,0.001]
[1763365975260,0.4659,3206.5,3206.3,0.001]
[1763365975499,1.5392448,3206.1,3205.1,0.1621]
[1763365975716,0.405504,3205.9,3205.1,0.1621]
[1763365975873,3.83014954,3205.9,3205.1,0.005]
[1763365976218,4.91006317,3205.9,3204.3,0.2425]
[1763365976351,1.67045991,3204.4,3204.3,0.2425]
[1763365976552,0.67152317,3204.4,3204.3,0.485]
[1763365977205,2.34116946,3204.4,3204.3,0.485]
[1763365977502,2.33640698,3204.4,3204.3,0.485]
[1763365978495,0.67152317,3204.4,3204.3,0.485]
[1763365978863,2.23684884,3205.0,3204.5,0.2425]
[1763365979066,3.37058964,3205.7,3204.9,0.2425]
[1763365979285,0.4898659,3205.6,3205.2,0.2425]
[1763365979464,1.1337408,3206.1,3205.6,0.1571]
[1763365979676,3.92980185,3206.1,3205.0,0.0854]
[1763365979876,2.21464193,3205.6,3205.0,0.0854]
[1763365980194,2.21464193,3205.7,3205.0,0.0854]
[1763365980356,0.83058286,3205.4,3205.0,0.0854]
[1763365980549,0.83058286,3205.4,3205.0,0.49892275]
[1763365980754,0.83058286,3205.4,3205.3,0.0854]
[1763365981057,2.21464193,3206.1,3205.3,0.0854]
[1763365981359,1.1337408,3206.0,3205.3,0.0854]
[1763365981567,0.405504,3205.9,3205.3,0.0854]
[1763365981753,4.04982747,3205.8,3204.5,0.0854]
[1763365981955,0.82998668,3204.8,3204.5,0.0854]
[1763365982155,0.82998668,3204.9,3204.5,0.0854]
[1763365982378,0.82998668,3204.9,3204.7,0.0854]
[1763365982603,0.82998668,3204.9,3204.8,0.0854]
[1763365982802,2.21464193,3205.3,3204.8,0.0854]
[1763365983003,2.21464193,3205.3,3204.8,0.1708]
[1763365983203,2.21464193,3205.3,3205.2,0.0854]
[1763365983390,2.21464193,3205.4,3205.2,0.1708]
[1763365983594,2.21464193,3205.5,3205.2,0.0854]
[1763365983820,2.21464193,3205.8,3205.4,0.0854]
[1763365984516,2.21464193,3205.7,3205.4,0.0854]
[1763365985589,2.21464193,3205.6,3205.4,0.0854]
[1763365985881,2.21464193,3205.5,3205.4,0.0854]
[1763365986081,1.1337408,3205.7,3204.9,0.0854]
[1763365986330,2.21029314,3205.3,3204.9,0.0854]
[1763365986488,2.21029314,3205.4,3204.9,0.0854]
[1763365986684,2.21029314,3205.5,3204.9,0.0854]
[1763365986891,2.21029314,3205.6,3204.9,0.0854]
[1763365987087,2.21029314,3205.5,3204.9,0.0854]
[1763365987282,1.1337408,3205.8,3204.9,0.0854]
[1763365987283,2.21029314,3205.4,3204.9,0.0854]
[1763365988323,2.21029314,3205.6,3204.9,0.0854]
[1763365988841,2.21029314,3205.5,3204.9,0.0854]
[1763365990339,0.405504,3205.0,3204.8,0.001]
[1763365990524,0.405504,3205.0,3204.4,0.001]
[1763365990525,2.21029314,3204.9,3204.4,0.001]
[1763365990725,2.20874187,3204.8,3204.4,0.001]
[1763365990931,4.00510629,3204.7,3204.4,0.001]
[1763365991241,2.87136549,3204.6,3204.4,0.001]
[1763365991551,0.66262362,3204.5,3204.4,0.001]
[1763365994234,1.49156039,3204.5,3204.4,0.001]
[1763365994421,1.49198277,3204.5,3204.4,0.001]
[1763365995243,1.49211943,3204.5,3204.4,0.001]
[1763365995948,2.20874187,3205.7,3204.4,4.05082747]
[1763365996241,2.20874187,3205.6,3204.5,0.40508275]
[1763365996410,2.20874187,3205.7,3204.5,0.40508275]
[1763365997912,3.34248267,3205.7,3204.4,0.001]
[1763365998317,2.20874187,3205.6,3204.4,0.001]
[1763365999011,1.66392025,3205.2,3204.4,0.001]
[1763365999417,1.66392025,3205.1,3204.4,4.05082747]
[1763365999640,1.66392025,3205.1,3205.0,4.04982747]
[1763365999813,2.20874187,3206.4,3205.1,1.5392448]
[1763366000012,2.20874187,3206.7,3205.9,4.04982747]
[1763366000219,2.20874187,3206.7,3205.1,1.5392448]
[1763366000220,0.005,3206.9,3206.4,4.04982747]
[1763366000846,0.005,3206.9,3206.0,1.53872355]
[1763366000847,0.005,3206.9,3206.7,4.04982747]
[1763366002029,0.005,3206.9,3206.0,0.40498275]
[1763366002233,0.005,3206.9,3205.8,1.1337408]
[1763366002759,0.005,3206.9,3205.5,1.1337408]
[1763366002760,0.1918,3206.9,3205.5,1.1337408]
[1763366003077,0.007,3206.9,3205.7,4.04982747]
[1763366003760,0.007,3206.9,3206.5,4.04982747]
[1763366004061,0.007,3206.9,3205.9,5.18356827]
[1763366004219,0.007,3206.9,3206.0,0.51835683]
[1763366004220,0.1918,3206.9,3206.0,0.51835683]
[1763366004420,0.1918,3206.9,3205.7,1.1337408]
[1763366005641,0.1918,3206.9,3205.6,1.1337408]
[1763366005877,0.007,3206.9,3205.8,4.04982747]
[1763366006397,0.007,3206.9,3205.5,1.1337408]
[1763366006398,0.007,3206.9,3206.1,4.04982747]
[1763366007262,0.007,3206.9,3206.4,4.04982747]
[1763366007445,0.007,3206.9,3206.5,0.40498275]
[1763366007868,0.66938201,3206.8,3206.5,0.40498275]
[1763366008068,0.66938201,3206.7,3206.5,0.40498275]
[1763366008381,0.66938201,3206.6,3205.9,1.1337408]
[1763366008561,0.66938201,3206.5,3206.1,1.1337408]
[1763366008747,0.66938201,3206.4,3206.1,1.1337408]
[1763366008949,0.007,3206.9,3206.1,1.1337408]
[1763366009171,0.66933034,3206.8,3206.2,0.51835683]
[1763366009370,0.66933034,3206.7,3206.2,0.51835683]
[1763366009649,0.66933034,3206.6,3206.2,0.51835683]
[1763366009981,0.66933034,3206.5,3206.2,0.51835683]
[1763366010149,0.66933034,3206.8,3206.2,0.51835683]
[1763366010345,0.66933034,3206.7,3206.3,0.16520976]
[1763366010673,0.66933034,3206.8,3206.6,4.04982747]
[1763366010846,0.007,3206.9,3206.6,4.04982747]
[1763366011182,0.002,3207.3,3206.7,1.1337408]
[1763366011350,0.002,3207.3,3207.1,4.04982747]
[1763366011554,0.002,3207.3,3207.2,0.40498275]
[1763366017094,0.002,3207.3,3206.7,1.1337408]
[1763366018279,0.002,3207.3,3206.4,1.1337408]
[1763366019088,0.002,3207.3,3207.2,4.04982747]
[1763366025478,0.002,3207.3,3207.2,5.18356827]
[1763366025995,0.002,3207.7,3207.3,1.5392448]
[1763366026312,0.002,3207.7,3207.6,5.58907227]
[1763366026513,0.005,3207.9,3207.6,5.58907227]
[1763366028453,0.005,3207.9,3207.6,4.04982747]
[1763366028659,0.005,3207.9,3207.4,1.1337408]
[1763366028884,0.005,3207.9,3207.5,1.1337408]
[1763366029155,0.005,3207.9,3207.6,0.53727225]
[1763366029694,0.005,3207.9,3207.6,1.67101305]
[1763366032082,0.005,3207.9,3206.5,3.11864699]
[1763366032083,0.6878,3207.9,3207.1,4.23898173]
[1763366032284,0.6878,3207.9,3207.2,1.1337408]
[1763366033063,0.6878,3207.9,3207.1,4.23898173]
[1763366033800,0.6878,3207.9,3207.5,4.23898173]
[1763366033801,0.005,3207.9,3207.5,4.23898173]
[1763366034100,0.005,3207.9,3207.6,0.42389817]
[1763366036303,0.005,3207.9,3207.6,1.55763897]
[1763366036769,0.005,3207.9,3207.6,0.42389817]
[1763366036964,0.2005,3207.9,3207.6,0.42389817]
[1763366037179,0.2005,3207.9,3207.7,0.46628799]
[1763366038596,0.2025,3207.9,3207.7,0.46628799]
[1763366040393,0.007,3207.9,3207.7,0.46628799]
[1763366041831,1.26627517,3207.8,3207.5,0.001]
[1763366042030,0.4871,3207.6,3207.5,0.001]
[1763366042527,0.6898,3207.9,3207.5,0.001]
[1763366042750,0.2919529,3207.8,3207.5,0.001]
[1763366042934,0.7792529,3207.8,3207.5,0.001]
[1763366043116,0.4873,3207.8,3207.5,0.001]
[1763366044696,0.007,3207.9,3207.5,4.23998173]
[1763366045016,0.007,3207.9,3207.6,0.42399817]
[1763366049005,0.2025,3207.9,3207.6,0.42399817]
[1763366049237,0.6898,3207.9,3207.6,0.42399817]
[1763366050338,0.4871,3207.7,3207.6,0.42399817]
[1763366050641,0.2025,3207.9,3207.5,0.001]
[1763366050936,0.007,3207.9,3207.5,4.23998173]
[1763366054614,0.6898,3207.9,3207.5,4.23998173]
[1763366054948,0.6898,3207.9,3207.5,0.001]
[1763366055151,0.6898,3207.9,3207.5,1.1347408]
[1763366055352,0.6898,3207.9,3207.5,1.67211305]
[1763366055712,0.2025,3207.9,3207.5,0.53837225]
[1763366056348,0.6898,3207.9,3207.5,0.53837225]
[1763366056847,0.4871,3207.6,3207.5,0.53837225]
[1763366057623,0.4873,3207.8,3207.5,0.53837225]
[1763366057850,0.4873,3207.8,3207.6,0.4777354]
[1763366058248,0.007,3207.9,3207.6,0.4777354]
[1763366058421,0.007,3207.9,3207.8,4.23898173]
[1763366059128,1.1194,3207.9,3207.8,4.23898173]
[1763366059358,1.1194,3207.9,3207.5,1.1347408]
[1763366059656,1.1194,3207.9,3207.6,0.53737225]
[1763366060119,0.4687,3207.7,3207.5,0.001]
[1763366060726,0.4687,3207.6,3207.5,0.001]
[1763366061127,0.9254,3207.6,3207.5,0.001]
[1763366061441,0.9254,3207.6,3207.5,0.42499817]
[1763366062523,0.9254,3207.6,3207.5,0.001]
[1763366062730,1.21795612,3207.6,3207.5,0.001]
[1763366063838,0.29255612,3207.6,3207.5,0.001]
[1763366064254,0.78115612,3207.6,3207.5,0.001]
[1763366064458,1.27625612,3207.6,3207.5,0.001]
[1763366067658,0.29255612,3207.6,3207.5,4.23998173]
[1763366067970,0.29255612,3207.8,3207.5,4.6639799]
[1763366068166,0.007,3207.9,3207.5,4.6639799]
[1763366070440,0.007,3207.9,3207.6,1.1337408]
[1763366070994,0.007,3207.9,3207.5,4.6639799]
[1763366072173,0.4886,3207.6,3207.5,0.42499817]
[1763366072361,0.4886,3207.6,3207.5,0.001]
[1763366072554,0.1947,3207.9,3207.5,4.23998173]
[1763366072781,0.007,3207.9,3207.5,4.23998173]
[1763366075377,0.007,3207.9,3207.6,1.1337408]
[1763366077442,0.1947,3207.9,3207.6,1.1337408]
[1763366077643,0.1947,3207.9,3207.7,0.53737225]
[1763366077840,0.007,3207.9,3207.7,0.53737225]
[1763366081098,0.007,3207.9,3207.8,0.405504]
[1763366081264,0.007,3207.9,3207.7,0.53737225]
[1763366083874,0.4886,3207.8,3207.7,0.53737225]
[1763366084489,0.1947,3207.9,3207.7,0.53737225]
[1763366084816,0.007,3207.9,3207.8,0.1671113]
[1763366085167,0.4956,3207.9,3207.8,0.1671113]
[1763366085877,1.47064127,3207.9,3207.5,0.001]
[1763366086061,0.4886,3207.6,3207.5,0.001]
[1763366086460,1.27598814,3207.6,3207.5,0.001]
[1763366087212,0.9837,3207.6,3207.5,0.001]
[1763366087422,1.2759612,3207.6,3207.5,0.001]
[1763366091209,1.94895062,3207.6,3207.5,0.001]
[1763366092152,1.2770612,3207.6,3207.5,0.001]
[1763366093238,0.7808612,3207.6,3207.5,0.001]
[1763366093437,0.2922612,3207.6,3207.5,0.001]
[1763366093607,0.2922612,3207.8,3207.5,0.001]
[1763366093805,0.2922612,3207.7,3207.5,0.001]